[Event "*** Titled Tuesday Blitz"]
[Site "Chess.com"]
[Date "2020.01.07"]
[Round "4"]
[White "Schachmalanders"]
[Black "Karina_Ivanova"]
[Result "0-1"]
[WhiteElo "2288"]
[BlackElo "2169"]
[TimeControl "180+2"]
[EndTime "13:56:23 PST"]
[Termination "Karina_Ivanova won on time"]

1. e4 {[%clk 0:03:01.9]} 1... c6 {[%clk 0:03:00.5]} 2. d4 {[%clk 0:03:00.3]}
2... d5 {[%clk 0:03:00.7]} 3. exd5 {[%clk 0:03:02]} 3... cxd5 {[%clk 0:03:01.4]}
4. c4 {[%clk 0:03:03.9]} 4... Nf6 {[%clk 0:03:01.9]} 5. Nc3 {[%clk 0:03:04.9]}
5... e6 {[%clk 0:03:02.6]} 6. a3 {[%clk 0:03:04.7]} 6... dxc4 {[%clk 0:03:00]}
7. Bxc4 {[%clk 0:03:05.1]} 7... Nc6 {[%clk 0:03:00.7]} 8. Nf3 {[%clk 0:03:05.8]}
8... Be7 {[%clk 0:03:01.3]} 9. O-O {[%clk 0:03:05.8]} 9... O-O {[%clk
0:03:01.5]} 10. Bf4 {[%clk 0:03:02.4]} 10... a6 {[%clk 0:02:32.3]} 11. Re1
{[%clk 0:02:55.2]} 11... b5 {[%clk 0:02:29.9]} 12. Ba2 {[%clk 0:02:51.1]} 12...
Bb7 {[%clk 0:02:30.1]} 13. d5 {[%clk 0:02:51.8]} 13... exd5 {[%clk 0:02:26.6]}
14. Nxd5 {[%clk 0:02:49.9]} 14... Nxd5 {[%clk 0:02:26.3]} 15. Bxd5 {[%clk
0:02:48.9]} 15... Bf6 {[%clk 0:02:18]} 16. Rc1 {[%clk 0:02:47.6]} 16... Rc8
{[%clk 0:01:57.9]} 17. Rc2 {[%clk 0:02:16.2]} 17... Nd4 {[%clk 0:01:18]} 18.
Rxc8 {[%clk 0:02:09.5]} 18... Qxd5 {[%clk 0:01:03]} 19. Rxf8+ {[%clk 0:02:01.6]}
19... Kxf8 {[%clk 0:01:03.3]} 20. b4 {[%clk 0:01:25.6]} 20... h5 {[%clk
0:00:36.8]} 21. Be3 {[%clk 0:01:14.6]} 21... Nxf3+ {[%clk 0:00:26.9]} 22. Qxf3
{[%clk 0:01:15.7]} 22... Qxf3 {[%clk 0:00:26.2]} 23. gxf3 {[%clk 0:01:17.6]}
23... Bxf3 {[%clk 0:00:26.8]} 24. Bc5+ {[%clk 0:01:15]} 24... Kg8 {[%clk
0:00:26.9]} 25. Re8+ {[%clk 0:00:45]} 25... Kh7 {[%clk 0:00:27.1]} 26. Rb8
{[%clk 0:00:38.9]} 26... Bb2 {[%clk 0:00:19.9]} 27. Rb6 {[%clk 0:00:33]} 27...
Bxa3 {[%clk 0:00:20.6]} 28. Rxa6 {[%clk 0:00:34.6]} 28... Bc1 {[%clk 0:00:21.3]}
29. Ra7 {[%clk 0:00:35.3]} 29... Bd5 {[%clk 0:00:21.1]} 30. Rd7 {[%clk
0:00:30.2]} 30... Bc4 {[%clk 0:00:21.8]} 31. Kg2 {[%clk 0:00:24.7]} 31... Bf4
{[%clk 0:00:21.4]} 32. Ra7 {[%clk 0:00:20.1]} 32... Kg6 {[%clk 0:00:20.4]} 33.
h3 {[%clk 0:00:18.7]} 33... Bd5+ {[%clk 0:00:20.6]} 34. Kf1 {[%clk 0:00:19.2]}
34... Bc4+ {[%clk 0:00:20.8]} 35. Ke1 {[%clk 0:00:20.1]} 35... f6 {[%clk
0:00:20.1]} 36. Bf8 {[%clk 0:00:20.4]} 36... Kf5 {[%clk 0:00:20.9]} 37. Bxg7
{[%clk 0:00:21.1]} 37... Bd6 {[%clk 0:00:21.7]} 38. Ra6 {[%clk 0:00:19.1]} 38...
Bxb4+ {[%clk 0:00:22.6]} 39. Kd1 {[%clk 0:00:20.6]} 39... Bc3 {[%clk 0:00:24]}
40. Kc2 {[%clk 0:00:18.1]} 40... Bd4 {[%clk 0:00:24.8]} 41. f3 {[%clk
0:00:18.7]} 41... Bd5 {[%clk 0:00:24.5]} 42. Ra5 {[%clk 0:00:15.9]} 42... Bc4
{[%clk 0:00:25.3]} 43. Bf8 {[%clk 0:00:15.5]} 43... Kf4 {[%clk 0:00:25.7]} 44.
Ra8 {[%clk 0:00:11.5]} 44... Kxf3 {[%clk 0:00:25.7]} 45. Bd6 {[%clk 0:00:13.1]}
45... f5 {[%clk 0:00:26.2]} 46. Rf8 {[%clk 0:00:06.9]} 46... Ke4 {[%clk
0:00:22.9]} 47. Kd2 {[%clk 0:00:07.6]} 47... Bf1 {[%clk 0:00:18.5]} 48. h4
{[%clk 0:00:08]} 48... Bc4 {[%clk 0:00:18.5]} 49. Be7 {[%clk 0:00:08.6]} 49...
Be5 {[%clk 0:00:17]} 50. Bg5 {[%clk 0:00:08.4]} 50... Bf4+ {[%clk 0:00:17.1]}
51. Kc3 {[%clk 0:00:08.8]} 51... Be5+ {[%clk 0:00:17.7]} 52. Kb4 {[%clk
0:00:08.9]} 52... Bd6+ {[%clk 0:00:18.7]} 0-1

[Event "*** Titled Tuesday Blitz"]
[Site "Chess.com"]
[Date "2020.01.07"]
[Round "4"]
[White "Sanan_Sjugirov"]
[Black "Alex_Molchanov"]
[Result "1/2-1/2"]
[WhiteElo "2927"]
[BlackElo "2587"]
[TimeControl "180+2"]
[EndTime "13:56:28 PST"]
[Termination "Game drawn by repetition"]

1. d4 {[%clk 0:03:01.9]} 1... d5 {[%clk 0:03:00.3]} 2. c4 {[%clk 0:03:02.3]}
2... e6 {[%clk 0:03:01.2]} 3. Nf3 {[%clk 0:03:02.6]} 3... Nf6 {[%clk 0:03:02]}
4. Nc3 {[%clk 0:03:03.5]} 4... Be7 {[%clk 0:03:02.7]} 5. Bf4 {[%clk 0:03:02.9]}
5... O-O {[%clk 0:03:02.6]} 6. e3 {[%clk 0:03:04.2]} 6... Nbd7 {[%clk 0:03:04]}
7. c5 {[%clk 0:03:04.7]} 7... c6 {[%clk 0:03:05.1]} 8. Bd3 {[%clk 0:03:03]} 8...
b6 {[%clk 0:03:06.1]} 9. b4 {[%clk 0:03:03.2]} 9... a5 {[%clk 0:03:07.5]} 10. a3
{[%clk 0:03:04]} 10... Ba6 {[%clk 0:03:08.9]} 11. Bxa6 {[%clk 0:03:01]} 11...
Rxa6 {[%clk 0:03:09.3]} 12. O-O {[%clk 0:02:56.9]} 12... Qc8 {[%clk 0:03:03]}
13. h3 {[%clk 0:02:49.3]} 13... Qb7 {[%clk 0:03:02.2]} 14. Rb1 {[%clk
0:02:37.6]} 14... axb4 {[%clk 0:03:01.2]} 15. axb4 {[%clk 0:02:39.5]} 15... Rfa8
{[%clk 0:02:55.8]} 16. b5 {[%clk 0:02:33.5]} 16... Ra5 {[%clk 0:01:44.9]} 17.
bxc6 {[%clk 0:02:25.4]} 17... Qxc6 {[%clk 0:01:45.2]} 18. Ne5 {[%clk 0:02:26.6]}
18... Nxe5 {[%clk 0:01:27.4]} 19. Rxb6 {[%clk 0:01:47.2]} 19... Qc8 {[%clk
0:01:26.9]} 20. Bxe5 {[%clk 0:01:16.4]} 20... Nd7 {[%clk 0:01:24]} 21. Rb5
{[%clk 0:01:10.1]} 21... Nxe5 {[%clk 0:01:16.1]} 22. dxe5 {[%clk 0:01:12]} 22...
Rxb5 {[%clk 0:01:08.4]} 23. Nxb5 {[%clk 0:01:13.9]} 23... Qxc5 {[%clk
0:01:08.3]} 24. Nd4 {[%clk 0:01:14.8]} 24... Qc7 {[%clk 0:01:03.5]} 25. f4
{[%clk 0:01:03]} 25... Bc5 {[%clk 0:00:58.2]} 26. Qd2 {[%clk 0:00:49.8]} 26...
Bxd4 {[%clk 0:00:54.4]} 27. exd4 {[%clk 0:00:49.7]} 27... g6 {[%clk 0:00:50.2]}
28. Qf2 {[%clk 0:00:34.4]} 28... Qc4 {[%clk 0:00:48.9]} 29. f5 {[%clk 0:00:17]}
29... exf5 {[%clk 0:00:39.9]} 30. Qh4 {[%clk 0:00:15.3]} 30... Qc3 {[%clk
0:00:12.1]} 31. Kh1 {[%clk 0:00:10.9]} 31... h5 {[%clk 0:00:08.9]} 32. Rb1
{[%clk 0:00:09.6]} 32... Ra1 {[%clk 0:00:08.6]} 33. Rxa1 {[%clk 0:00:10.6]}
33... Qxa1+ {[%clk 0:00:08.9]} 34. Kh2 {[%clk 0:00:12.5]} 34... Qa5 {[%clk
0:00:07.9]} 35. Qf6 {[%clk 0:00:12.5]} 35... Qd2 {[%clk 0:00:05.8]} 36. Qd8+
{[%clk 0:00:10.7]} 36... Kg7 {[%clk 0:00:06.1]} 37. Qf6+ {[%clk 0:00:11.7]}
37... Kg8 {[%clk 0:00:07.6]} 38. Qd8+ {[%clk 0:00:11.2]} 38... Kh7 {[%clk
0:00:08.2]} 39. Qxd5 {[%clk 0:00:12.4]} 39... Qf4+ {[%clk 0:00:09.3]} 40. Kh1
{[%clk 0:00:12.7]} 40... Qf1+ {[%clk 0:00:10.2]} 41. Kh2 {[%clk 0:00:14.1]}
41... Qf4+ {[%clk 0:00:11.8]} 42. Kg1 {[%clk 0:00:13.4]} 42... Qe3+ {[%clk
0:00:13.2]} 43. Kf1 {[%clk 0:00:14]} 43... Qd3+ {[%clk 0:00:14.6]} 44. Kf2
{[%clk 0:00:14.6]} 44... Qd2+ {[%clk 0:00:14.3]} 45. Kf3 {[%clk 0:00:10.6]}
45... Qd1+ {[%clk 0:00:14.2]} 46. Kg3 {[%clk 0:00:09.6]} 46... h4+ {[%clk
0:00:09]} 47. Kh2 {[%clk 0:00:08.7]} 47... Kg7 {[%clk 0:00:06.4]} 48. e6 {[%clk
0:00:06.8]} 48... Qe1 {[%clk 0:00:07.3]} 49. exf7 {[%clk 0:00:05.1]} 49... Qg3+
{[%clk 0:00:07.5]} 50. Kh1 {[%clk 0:00:06.4]} 50... Qe1+ {[%clk 0:00:09.4]} 51.
Kh2 {[%clk 0:00:07.4]} 51... Qg3+ {[%clk 0:00:11.3]} 52. Kh1 {[%clk 0:00:08.6]}
52... Qe1+ {[%clk 0:00:13.2]} 53. Kh2 {[%clk 0:00:10]} 1/2-1/2

[Event "*** Titled Tuesday Blitz"]
[Site "Chess.com"]
[Date "2020.01.07"]
[Round "4"]
[White "BIG_Pirate"]
[Black "IgorBjelobrk"]
[Result "0-1"]
[WhiteElo "2418"]
[BlackElo "2640"]
[TimeControl "180+2"]
[EndTime "13:56:30 PST"]
[Termination "IgorBjelobrk won by resignation"]

1. Nf3 {[%clk 0:03:01.8]} 1... d5 {[%clk 0:02:56.8]} 2. c4 {[%clk 0:03:02.9]}
2... e6 {[%clk 0:02:56.7]} 3. g3 {[%clk 0:03:03.9]} 3... Nf6 {[%clk 0:02:56.8]}
4. Bg2 {[%clk 0:03:05.1]} 4... dxc4 {[%clk 0:02:57.9]} 5. O-O {[%clk 0:03:06.3]}
5... a6 {[%clk 0:02:54.1]} 6. a4 {[%clk 0:03:06.7]} 6... Nc6 {[%clk 0:02:53.7]}
7. Na3 {[%clk 0:03:06.4]} 7... Qd5 {[%clk 0:02:49.9]} 8. Qc2 {[%clk 0:03:03.9]}
8... Na5 {[%clk 0:02:48.8]} 9. Qc3 {[%clk 0:02:47.5]} 9... Ne4 {[%clk
0:02:30.9]} 10. Qe5 {[%clk 0:02:26.5]} 10... Qxe5 {[%clk 0:02:27.6]} 11. Nxe5
{[%clk 0:02:27.1]} 11... Nd6 {[%clk 0:02:29.1]} 12. d3 {[%clk 0:01:36.8]} 12...
cxd3 {[%clk 0:02:29.5]} 13. Nxd3 {[%clk 0:01:37.5]} 13... Nb3 {[%clk 0:02:30.3]}
14. Rb1 {[%clk 0:01:38.2]} 14... Bd7 {[%clk 0:02:27]} 15. a5 {[%clk 0:01:22.1]}
15... Be7 {[%clk 0:02:10.1]} 16. Bf4 {[%clk 0:01:22]} 16... O-O {[%clk
0:02:08.8]} 17. Ne5 {[%clk 0:01:03.2]} 17... Ba4 {[%clk 0:02:06.3]} 18. Nec4
{[%clk 0:00:58.4]} 18... Rab8 {[%clk 0:01:59.2]} 19. Rfd1 {[%clk 0:00:48.2]}
19... Rfd8 {[%clk 0:01:59.3]} 20. Rd3 {[%clk 0:00:44.4]} 20... g5 {[%clk
0:01:53.8]} 21. Bxd6 {[%clk 0:00:40.4]} 21... Bxd6 {[%clk 0:01:50.1]} 22. Nxd6
{[%clk 0:00:32.6]} 22... Rxd6 {[%clk 0:01:46.8]} 23. Rxd6 {[%clk 0:00:20]} 23...
cxd6 {[%clk 0:01:48.7]} 24. Nc4 {[%clk 0:00:21.2]} 24... d5 {[%clk 0:01:43.9]}
25. Nb6 {[%clk 0:00:22.5]} 25... Bc6 {[%clk 0:01:41.6]} 26. Re1 {[%clk
0:00:14.5]} 26... f5 {[%clk 0:01:41.1]} 27. h3 {[%clk 0:00:12.8]} 27... Kf7
{[%clk 0:01:41.1]} 28. g4 {[%clk 0:00:14.2]} 28... f4 {[%clk 0:01:41.3]} 29. e4
{[%clk 0:00:13.7]} 29... d4 {[%clk 0:01:31.3]} 30. e5 {[%clk 0:00:12.7]} 30...
Rd8 {[%clk 0:01:26.8]} 31. Nc4 {[%clk 0:00:13.2]} 31... Bxg2 {[%clk 0:01:18.6]}
32. Kxg2 {[%clk 0:00:15.1]} 32... Rd5 {[%clk 0:01:19.7]} 33. Kf3 {[%clk
0:00:14]} 33... Ke7 {[%clk 0:01:13.8]} 34. Ke4 {[%clk 0:00:14.8]} 34... Nc5+
{[%clk 0:01:12]} 35. Kf3 {[%clk 0:00:14.9]} 35... Nd3 {[%clk 0:00:58.4]} 36. Re2
{[%clk 0:00:16.2]} 36... Rc5 {[%clk 0:00:32.7]} 37. Ke4 {[%clk 0:00:07.9]} 37...
Nxf2+ {[%clk 0:00:28]} 38. Kxd4 {[%clk 0:00:09.1]} 38... Rd5+ {[%clk 0:00:26.9]}
39. Kc3 {[%clk 0:00:10.4]} 39... Rd3+ {[%clk 0:00:21.3]} 40. Kc2 {[%clk
0:00:11]} 40... Rf3 {[%clk 0:00:20.7]} 41. Nd6 {[%clk 0:00:11]} 41... Nxh3
{[%clk 0:00:21.4]} 42. Nxb7 {[%clk 0:00:10.6]} 42... Nf2 {[%clk 0:00:22.2]} 43.
Nc5 {[%clk 0:00:11.7]} 43... Nxg4 {[%clk 0:00:22.5]} 44. Nxa6 {[%clk 0:00:12.7]}
44... Rf1 {[%clk 0:00:22.2]} 45. Nb4 {[%clk 0:00:12.4]} 45... f3 {[%clk
0:00:23.1]} 46. Rd2 {[%clk 0:00:12.6]} 46... f2 {[%clk 0:00:23]} 47. Rxf2 {[%clk
0:00:07.9]} 47... Nxf2 {[%clk 0:00:22.8]} 48. Kb3 {[%clk 0:00:09.8]} 48... Ra1
{[%clk 0:00:23.6]} 49. Kc4 {[%clk 0:00:09.2]} 49... g4 {[%clk 0:00:23]} 50. Kb5
{[%clk 0:00:06]} 50... g3 {[%clk 0:00:23.7]} 51. Nc6+ {[%clk 0:00:07]} 51... Kf8
{[%clk 0:00:24.5]} 52. Nd4 {[%clk 0:00:06.4]} 52... g2 {[%clk 0:00:24.1]} 53.
Nf3 {[%clk 0:00:07.4]} 53... h5 {[%clk 0:00:24.1]} 54. b4 {[%clk 0:00:07.6]}
54... h4 {[%clk 0:00:24.6]} 55. Kb6 {[%clk 0:00:08.9]} 55... h3 {[%clk
0:00:25.6]} 56. a6 {[%clk 0:00:10.4]} 56... h2 {[%clk 0:00:23]} 57. Nxh2 {[%clk
0:00:09.5]} 57... g1=Q {[%clk 0:00:23.3]} 0-1

[Event "*** Titled Tuesday Blitz"]
[Site "Chess.com"]
[Date "2020.01.07"]
[Round "4"]
[White "chessking2151"]
[Black "Quiet_Desperation"]
[Result "1/2-1/2"]
[WhiteElo "2594"]
[BlackElo "2379"]
[TimeControl "180+2"]
[EndTime "13:56:35 PST"]
[Termination "Game drawn by repetition"]

1. d4 {[%clk 0:02:50.7]} 1... Nf6 {[%clk 0:03:00.1]} 2. c4 {[%clk 0:02:49]} 2...
e6 {[%clk 0:03:01.5]} 3. Nf3 {[%clk 0:02:49.4]} 3... Bb4+ {[%clk 0:03:01.7]} 4.
Nbd2 {[%clk 0:02:49.6]} 4... b6 {[%clk 0:03:02.5]} 5. a3 {[%clk 0:02:49.3]} 5...
Bxd2+ {[%clk 0:03:03.3]} 6. Qxd2 {[%clk 0:02:50.8]} 6... Bb7 {[%clk 0:03:04.6]}
7. b3 {[%clk 0:02:45.8]} 7... O-O {[%clk 0:03:04.7]} 8. Bb2 {[%clk 0:02:40.7]}
8... Ne4 {[%clk 0:03:04.7]} 9. Qc2 {[%clk 0:02:39.7]} 9... f5 {[%clk 0:03:04.8]}
10. g3 {[%clk 0:02:30.6]} 10... d6 {[%clk 0:03:02.6]} 11. Bg2 {[%clk 0:02:29.9]}
11... Nd7 {[%clk 0:03:01.8]} 12. O-O {[%clk 0:02:26.6]} 12... Qe7 {[%clk
0:02:55.6]} 13. Rfd1 {[%clk 0:01:57.7]} 13... Rf7 {[%clk 0:02:40.5]} 14. Ne1
{[%clk 0:01:42.6]} 14... Raf8 {[%clk 0:02:36.2]} 15. e3 {[%clk 0:01:22.6]} 15...
g5 {[%clk 0:02:16.2]} 16. d5 {[%clk 0:01:22.2]} 16... e5 {[%clk 0:01:55.5]} 17.
f3 {[%clk 0:01:00.3]} 17... Nef6 {[%clk 0:01:41]} 18. Qc3 {[%clk 0:00:49.1]}
18... h5 {[%clk 0:01:28.5]} 19. Nd3 {[%clk 0:00:45.9]} 19... Nc5 {[%clk
0:01:24.1]} 20. Nf2 {[%clk 0:00:41.5]} 20... Rh7 {[%clk 0:01:14.3]} 21. Nh3
{[%clk 0:00:32.9]} 21... Qg7 {[%clk 0:01:04.5]} 22. f4 {[%clk 0:00:24.7]} 22...
Nfe4 {[%clk 0:00:59.1]} 23. Qc2 {[%clk 0:00:23]} 23... h4 {[%clk 0:00:54]} 24.
b4 {[%clk 0:00:18.4]} 24... hxg3 {[%clk 0:00:49.8]} 25. hxg3 {[%clk 0:00:18.4]}
25... g4 {[%clk 0:00:42.8]} 26. Nf2 {[%clk 0:00:17.9]} 26... Nxg3 {[%clk
0:00:36]} 27. bxc5 {[%clk 0:00:12.9]} 27... Qh6 {[%clk 0:00:36.7]} 28. Nh1
{[%clk 0:00:13.5]} 28... Nxh1 {[%clk 0:00:32.2]} 29. Kf1 {[%clk 0:00:13.5]}
29... exf4 {[%clk 0:00:18.5]} 30. c6 {[%clk 0:00:13.9]} 30... Bc8 {[%clk
0:00:14.3]} 31. Qc3 {[%clk 0:00:14.8]} 31... f3 {[%clk 0:00:13.3]} 32. Bxf3
{[%clk 0:00:13.2]} 32... gxf3 {[%clk 0:00:13.4]} 33. Ke1 {[%clk 0:00:14.4]}
33... Qh4+ {[%clk 0:00:12.1]} 34. Kd2 {[%clk 0:00:15.3]} 34... Ng3 {[%clk
0:00:13]} 35. Rg1 {[%clk 0:00:16]} 35... f2 {[%clk 0:00:13.1]} 36. Rg2 {[%clk
0:00:16]} 36... Rff7 {[%clk 0:00:09.4]} 37. Kc2 {[%clk 0:00:13.7]} 37... f4
{[%clk 0:00:09.2]} 38. Rxf2 {[%clk 0:00:14.4]} 38... Bf5+ {[%clk 0:00:09.9]} 39.
Kb3 {[%clk 0:00:14.9]} 39... Ne4 {[%clk 0:00:11.3]} 40. Rg2+ {[%clk 0:00:16.2]}
40... Bg4 {[%clk 0:00:11.8]} 41. Qd4 {[%clk 0:00:16.6]} 41... f3 {[%clk
0:00:13]} 42. Rc2 {[%clk 0:00:14.5]} 42... Nc5+ {[%clk 0:00:13.5]} 43. Ka2
{[%clk 0:00:15.3]} 43... Bf5 {[%clk 0:00:14.2]} 44. Rg1+ {[%clk 0:00:14.7]}
44... Kf8 {[%clk 0:00:14.3]} 45. Rf2 {[%clk 0:00:12.1]} 45... Qxd4 {[%clk
0:00:14.9]} 46. exd4 {[%clk 0:00:13.3]} 46... Nd3 {[%clk 0:00:16.5]} 47. Rxf3
{[%clk 0:00:14.6]} 47... Nxb2 {[%clk 0:00:18]} 48. Kxb2 {[%clk 0:00:15.9]} 48...
Be4 {[%clk 0:00:18.2]} 49. Rxf7+ {[%clk 0:00:16.3]} 49... Rxf7 {[%clk
0:00:20.1]} 50. Re1 {[%clk 0:00:14.5]} 50... Bf5 {[%clk 0:00:18]} 51. Kc3 {[%clk
0:00:15.5]} 51... Re7 {[%clk 0:00:19.2]} 52. Rf1 {[%clk 0:00:15.8]} 52... Rf7
{[%clk 0:00:20.6]} 53. a4 {[%clk 0:00:15.6]} 53... Bg6 {[%clk 0:00:20.6]} 54.
Rg1 {[%clk 0:00:16.3]} 54... Kg7 {[%clk 0:00:22.1]} 55. a5 {[%clk 0:00:16.8]}
55... Rf3+ {[%clk 0:00:22.7]} 56. Kb4 {[%clk 0:00:17.2]} 56... Rd3 {[%clk
0:00:23.9]} 57. axb6 {[%clk 0:00:17.8]} 57... axb6 {[%clk 0:00:25.8]} 58. Ra1
{[%clk 0:00:18.5]} 58... Rxd4 {[%clk 0:00:26.9]} 59. Ra7 {[%clk 0:00:18.4]}
59... Bd3 {[%clk 0:00:26.8]} 60. Rxc7+ {[%clk 0:00:18.9]} 60... Kf6 {[%clk
0:00:28.1]} 61. Rd7 {[%clk 0:00:14.3]} 61... Rxc4+ {[%clk 0:00:28.5]} 62. Kb5
{[%clk 0:00:15]} 62... Ke5 {[%clk 0:00:29.9]} 63. Kxb6 {[%clk 0:00:14.2]} 63...
Kxd5 {[%clk 0:00:30.8]} 64. c7 {[%clk 0:00:15.2]} 64... Rb4+ {[%clk 0:00:31.6]}
65. Ka5 {[%clk 0:00:15.5]} 65... Rc4 {[%clk 0:00:32.9]} 66. Kb6 {[%clk
0:00:16.4]} 66... Rb4+ {[%clk 0:00:34.3]} 67. Ka5 {[%clk 0:00:17.6]} 67... Rc4
{[%clk 0:00:35.8]} 68. Kb6 {[%clk 0:00:18.8]} 1/2-1/2

[Event "*** Titled Tuesday Blitz"]
[Site "Chess.com"]
[Date "2020.01.07"]
[Round "4"]
[White "HrvojeZagreb"]
[Black "Borsuk_Konstantin"]
[Result "0-1"]
[WhiteElo "2232"]
[BlackElo "2487"]
[TimeControl "180+2"]
[EndTime "13:56:37 PST"]
[Termination "Borsuk_Konstantin won by checkmate"]

1. d4 {[%clk 0:03:01.9]} 1... Nf6 {[%clk 0:03:00.6]} 2. Bf4 {[%clk 0:03:02.8]}
2... b6 {[%clk 0:03:00.3]} 3. e3 {[%clk 0:03:02.3]} 3... Bb7 {[%clk 0:03:00.6]}
4. Nf3 {[%clk 0:03:03.5]} 4... e6 {[%clk 0:03:00.5]} 5. Be2 {[%clk 0:03:04.2]}
5... d6 {[%clk 0:03:00.8]} 6. a4 {[%clk 0:03:05.1]} 6... Nh5 {[%clk 0:03:00.9]}
7. Bg5 {[%clk 0:03:05.4]} 7... Be7 {[%clk 0:03:02.2]} 8. h4 {[%clk 0:03:01.1]}
8... h6 {[%clk 0:03:02.3]} 9. Bxe7 {[%clk 0:03:00.5]} 9... Qxe7 {[%clk
0:03:04.2]} 10. a5 {[%clk 0:02:59.7]} 10... Nf6 {[%clk 0:02:58.4]} 11. a6 {[%clk
0:02:55.6]} 11... Bc8 {[%clk 0:02:57.4]} 12. Nc3 {[%clk 0:02:50.5]} 12... Nd5
{[%clk 0:02:40.4]} 13. Ne4 {[%clk 0:02:34.9]} 13... c6 {[%clk 0:02:33.1]} 14. c3
{[%clk 0:02:33]} 14... b5 {[%clk 0:02:27.7]} 15. c4 {[%clk 0:02:29]} 15... bxc4
{[%clk 0:02:28.5]} 16. Bxc4 {[%clk 0:02:28.6]} 16... O-O {[%clk 0:02:03.6]} 17.
Nfg5 {[%clk 0:02:19.5]} 17... f5 {[%clk 0:01:53]} 18. Qh5 {[%clk 0:02:01.2]}
18... fxe4 {[%clk 0:01:48.8]} 19. Qg6 {[%clk 0:02:01.5]} 19... Nf6 {[%clk
0:01:43.3]} 20. f3 {[%clk 0:01:20.3]} 20... Qe8 {[%clk 0:01:07.1]} 21. Qxe8
{[%clk 0:01:11.8]} 21... Rxe8 {[%clk 0:01:03.6]} 22. Nxe4 {[%clk 0:01:08.2]}
22... Nxe4 {[%clk 0:00:57.5]} 23. fxe4 {[%clk 0:01:10.1]} 23... Nd7 {[%clk
0:00:56.3]} 24. Ke2 {[%clk 0:00:59.3]} 24... Rb8 {[%clk 0:00:57.1]} 25. Ra2
{[%clk 0:00:57.3]} 25... d5 {[%clk 0:00:53.5]} 26. Bd3 {[%clk 0:00:56.9]} 26...
e5 {[%clk 0:00:52.9]} 27. exd5 {[%clk 0:00:53.7]} 27... cxd5 {[%clk 0:00:50.4]}
28. Bg6 {[%clk 0:00:48.2]} 28... Re6 {[%clk 0:00:47.1]} 29. Bf5 {[%clk
0:00:47.5]} 29... Rf6 {[%clk 0:00:45.7]} 30. g4 {[%clk 0:00:44.7]} 30... exd4
{[%clk 0:00:45]} 31. exd4 {[%clk 0:00:44.9]} 31... Nb6 {[%clk 0:00:45]} 32. Bxc8
{[%clk 0:00:42.8]} 32... Rxc8 {[%clk 0:00:46]} 33. g5 {[%clk 0:00:37.4]} 33...
Re8+ {[%clk 0:00:41.5]} 34. Kd1 {[%clk 0:00:34.2]} 34... hxg5 {[%clk 0:00:37]}
35. hxg5 {[%clk 0:00:36.1]} 35... Rf4 {[%clk 0:00:38]} 36. Ra3 {[%clk
0:00:32.1]} 36... Rxd4+ {[%clk 0:00:38.7]} 37. Kc1 {[%clk 0:00:33.1]} 37... Kf7
{[%clk 0:00:30.4]} 38. g6+ {[%clk 0:00:29.3]} 38... Kxg6 {[%clk 0:00:31.2]} 39.
Rg3+ {[%clk 0:00:30.1]} 39... Kf7 {[%clk 0:00:28.6]} 40. Rf1+ {[%clk 0:00:29.9]}
40... Kg8 {[%clk 0:00:29]} 41. Rfg1 {[%clk 0:00:25.7]} 41... Rc4+ {[%clk
0:00:29.7]} 42. Kb1 {[%clk 0:00:26.2]} 42... Rc7 {[%clk 0:00:30.8]} 43. Rh1
{[%clk 0:00:22.4]} 43... Re6 {[%clk 0:00:29.2]} 44. Rgh3 {[%clk 0:00:21]} 44...
Nc4 {[%clk 0:00:29.5]} 45. Rh8+ {[%clk 0:00:18.1]} 45... Kf7 {[%clk 0:00:30.5]}
46. Rf1+ {[%clk 0:00:15.8]} 46... Rf6 {[%clk 0:00:31.3]} 47. Rg1 {[%clk
0:00:13.7]} 47... Rxa6 {[%clk 0:00:30.2]} 48. b3 {[%clk 0:00:14]} 48... Rb6
{[%clk 0:00:27.1]} 49. Ka2 {[%clk 0:00:15.2]} 49... Ne5 {[%clk 0:00:23.7]} 50.
Rh5 {[%clk 0:00:14.4]} 50... Re7 {[%clk 0:00:22]} 51. Re1 {[%clk 0:00:13.3]}
51... Rbe6 {[%clk 0:00:22.1]} 52. Rf1+ {[%clk 0:00:14]} 52... Ke8 {[%clk
0:00:21.8]} 53. Rd1 {[%clk 0:00:14.5]} 53... Rd6 {[%clk 0:00:21.3]} 54. Rc1
{[%clk 0:00:09.4]} 54... d4 {[%clk 0:00:21]} 55. Rh8+ {[%clk 0:00:09.7]} 55...
Kf7 {[%clk 0:00:22.1]} 56. Rf1+ {[%clk 0:00:10.7]} 56... Rf6 {[%clk 0:00:23.2]}
57. Rd1 {[%clk 0:00:11.7]} 57... d3 {[%clk 0:00:24.5]} 58. Rh3 {[%clk
0:00:12.5]} 58... g5 {[%clk 0:00:25.2]} 59. b4 {[%clk 0:00:12.2]} 59... g4
{[%clk 0:00:26]} 60. Rg3 {[%clk 0:00:13.2]} 60... Kg6 {[%clk 0:00:26.6]} 61. Kb3
{[%clk 0:00:13.9]} 61... Rf3 {[%clk 0:00:27.4]} 62. Rg2 {[%clk 0:00:14.8]} 62...
Kg5 {[%clk 0:00:27.7]} 63. Ka4 {[%clk 0:00:15.9]} 63... Kf4 {[%clk 0:00:28.7]}
64. b5 {[%clk 0:00:16.8]} 64... g3 {[%clk 0:00:29.2]} 65. Ka5 {[%clk 0:00:18]}
65... Rf2 {[%clk 0:00:30.1]} 66. Rgg1 {[%clk 0:00:19.3]} 66... g2 {[%clk
0:00:31]} 67. Ka6 {[%clk 0:00:20.5]} 67... Ra2# {[%clk 0:00:29.8]} 0-1